fUSD/lending_fUSD_20250515
["ID","MTS","AMOUNT","RATE_DAILY","PERIOD"]
[361159132,1747312273805,-400.0,0.00013424,2]
[361159133,1747312273821,-400.0,0.00013424,2]
[361159134,1747312273838,-400.0,0.00013424,2]
[361159135,1747312273856,-400.0,0.00013424,2]
[361159136,1747312273873,-400.0,0.00013424,2]
[361159137,1747312273888,-400.0,0.00013424,2]
[361159138,1747312273905,-400.0,0.00013465,2]
[361159139,1747312273921,-400.0,0.00013465,2]
[361159140,1747312273936,-1000.0,0.00013497,2]
[361159141,1747312273951,-194.65874869,0.000135,2]
[361159142,1747312273963,-1601.59433775,0.000135,2]
[361159143,1747312273978,-664.24,0.00013502,2]
[361159144,1747312273995,-469.89,0.00013512,2]
[361159145,1747312274007,-499.13,0.00013512,2]
[361159146,1747312274020,-2415.52,0.00013512,2]
[361159147,1747312274034,-2561.98,0.00013512,2]
[361159148,1747312274050,-400.0,0.00013513,2]
[361159149,1747312274065,-465.47442229,0.00013513,2]
[361159150,1747312274077,-483.79,0.00013513,2]
[361159151,1747312274090,-709.94,0.00013513,2]
[361159152,1747312274108,-400.0,0.00013513,2]
[361159153,1747312274121,-494.81,0.00013513,2]
[361159154,1747312274134,-481.22,0.00013513,2]
[361159155,1747312274147,-400.0,0.00013513,2]
[361159156,1747312274159,-419.11,0.00013513,2]
[361159157,1747312274172,-624.18,0.00013513,2]
[361159158,1747312274185,-400.0,0.00013513,2]
[361159159,1747312274197,-620.77,0.00013513,2]
[361159160,1747312274211,-400.0,0.00013513,2]
[361159161,1747312274223,-372.27,0.00013513,2]
[361159162,1747312274236,-400.0,0.00013513,2]
[361159163,1747312274252,-440.9,0.00013513,2]
[361159164,1747312274265,-1038.52,0.00013513,2]
[361159165,1747312274278,-881.03,0.00013513,2]
[361159166,1747312274291,-501.16,0.00013513,2]
[361159167,1747312274305,-1344.14,0.00013513,2]
[361159168,1747312274318,-451.75,0.00013513,2]
[361159169,1747312274330,-400.0,0.00013513,2]
[361159170,1747312274343,-612.11,0.00013513,2]
[361159171,1747312274357,-462.96,0.00013513,2]
[361159172,1747312274370,-477.75,0.00013513,2]
[361159173,1747312274383,-400.0,0.00013513,2]
[361159174,1747312274395,-400.0,0.00013513,2]
[361159175,1747312274408,-439.58,0.00013513,2]
[361159176,1747312274420,-400.0,0.00013513,2]
[361159177,1747312274433,-576.82,0.00013513,2]
[361159178,1747312274445,-413.48,0.00013513,2]
[361159179,1747312274458,-546.12,0.00013513,2]
[361159180,1747312274471,-416.69,0.00013513,2]
[361159181,1747312274484,-505.41,0.00013513,2]
[361159182,1747312274498,-400.0,0.00013513,2]
[361159183,1747312274510,-400.0,0.00013513,2]
[361159184,1747312274523,-465.84,0.00013513,2]
[361159185,1747312274535,-400.0,0.00013513,2]
[361159186,1747312274549,-1045.24,0.00013513,2]
[361159187,1747312274562,-472.83,0.00013513,2]
[361159188,1747312274575,-400.0,0.00013513,2]
[361159189,1747312274588,-699.13,0.00013513,2]
[361159190,1747312274609,-999.87,0.00013513,2]
[361159191,1747312274622,-1258.7,0.00013513,2]
[361159192,1747312274635,-871.71,0.00013513,2]
[361159193,1747312274649,-400.0,0.00013513,2]
[361159194,1747312274664,-563.34,0.00013513,2]
[361159195,1747312274677,-522.13,0.00013513,2]
[361159196,1747312274691,-569.36,0.00013513,2]
[361159197,1747312274703,-467.55,0.00013513,2]
[361159198,1747312274716,-558.97,0.00013513,2]
[361159199,1747312274729,-995.06,0.00013513,2]
[361159200,1747312274742,-2978.01,0.00013513,2]
[361159201,1747312274755,-400.0,0.00013513,2]
[361159202,1747312274768,-961.53,0.00013513,2]
[361159203,1747312274781,-814.79,0.00013513,2]
[361159204,1747312274794,-400.0,0.00013513,2]
[361159205,1747312274808,-1150.65,0.00013513,2]
[361159206,1747312274821,-953.55,0.00013513,2]
[361159207,1747312274835,-945.18,0.00013513,2]
[361159208,1747312274851,-605.88,0.00013513,2]
[361159209,1747312274865,-400.0,0.00013513,2]
[361159210,1747312274879,-793.37,0.00013513,2]
[361159211,1747312274893,-400.0,0.00013513,2]
[361159212,1747312274907,-400.0,0.00013513,2]
[361159213,1747312274920,-400.0,0.00013513,2]
[361159214,1747312274934,-565.3,0.00013513,2]
[361159215,1747312274948,-3659.41,0.00013513,2]
[361159216,1747312274962,-400.0,0.00013513,2]
[361159217,1747312274975,-400.0,0.00013513,2]
[361159218,1747312274989,-586.1,0.00013513,2]
[361159219,1747312275003,-866.92,0.00013513,2]
[361159220,1747312275017,-1133.62,0.00013513,2]
[361159221,1747312275031,-400.0,0.00013513,2]
[361159222,1747312275043,-400.0,0.00013513,2]
[361159223,1747312275057,-896.17,0.00013513,2]
[361159224,1747312275070,-3422.62,0.00013513,2]
[361159225,1747312275084,-400.0,0.00013513,2]
[361159226,1747312275102,-400.0,0.00013513,2]
[361159227,1747312275114,-1508.16,0.00013513,2]
[361159228,1747312275128,-400.0,0.00013513,2]
[361159229,1747312275141,-400.0,0.00013513,2]
[361159230,1747312275154,-2309.39,0.00013513,2]
[361159231,1747312275167,-546.0,0.00013513,2]
[361159232,1747312275180,-521.69,0.00013513,2]
[361159233,1747312275193,-982.05,0.00013513,2]
[361159234,1747312275205,-499.46,0.00013513,2]
[361159235,1747312275219,-400.0,0.00013513,2]
[361159236,1747312275232,-2191.97,0.00013513,2]
[361159237,1747312275246,-957.61,0.00013513,2]
[361159238,1747312275261,-722.35,0.00013513,2]
[361159239,1747312275274,-400.0,0.00013513,2]
[361159240,1747312275288,-2080.12,0.00013513,2]
[361159241,1747312275302,-668.17,0.00013513,2]
[361159242,1747312275316,-400.0,0.00013513,2]
[361159243,1747312275329,-400.0,0.00013513,2]
[361159244,1747312275342,-400.0,0.00013513,2]
[361159245,1747312275360,-1597.82,0.00013513,2]
[361159246,1747312275374,-1630.72,0.00013513,2]
[361159247,1747312275387,-400.0,0.00013513,2]
[361159248,1747312275399,-3843.82,0.00013513,2]
[361159249,1747312275412,-598.25,0.00013513,2]
[361159250,1747312275424,-1950.93,0.00013513,2]
[361159251,1747312275437,-457.12,0.00013513,2]
[361159252,1747312275450,-922.32,0.00013513,2]
[361159253,1747312275465,-10611.15,0.00013513,2]
[361159254,1747312275480,-400.0,0.00013513,2]
[361159255,1747312275493,-400.0,0.00013513,2]
[361159256,1747312275505,-1108.85,0.00013513,2]
[361159257,1747312275519,-541.7,0.00013513,2]
[361159258,1747312275531,-501.52,0.00013513,2]
[361159259,1747312275546,-601.85,0.00013513,2]
[361159260,1747312275559,-589.76,0.00013513,2]
[361159261,1747312275571,-29073.02,0.00013513,2]
[361159262,1747312275584,-622.13,0.00013513,2]
[361159263,1747312275600,-400.0,0.00013513,2]
[361159264,1747312275613,-3250.93,0.00013513,2]
[361159265,1747312275627,-676.29,0.00013513,2]
[361159266,1747312275641,-2267.04,0.00013513,2]
[361159267,1747312275652,-530.87,0.00013513,2]
[361159268,1747312275663,-420.88,0.00013513,2]
[361159269,1747312275675,-796.59,0.00013513,2]
[361159270,1747312275685,-419.55,0.00013514,2]
[361159271,1747312275696,-400.0,0.00013514,2]
[361159272,1747312275706,-400.0,0.00013514,2]
[361159273,1747312275717,-448.46,0.00013514,2]
[361159274,1747312275727,-400.0,0.00013514,2]
[361159275,1747312275737,-400.0,0.00013514,2]
[361159276,1747312275746,-400.0,0.00013514,2]
[361159277,1747312275756,-246.10859789,0.00013514,2]
[361159278,1747312275766,-400.0,0.00013514,2]
[361159279,1747312275776,-400.0,0.00013514,2]
[361159280,1747312275786,-400.0,0.00013514,2]
[361159281,1747312275796,-400.0,0.00013514,2]
[361159282,1747312275805,-572.49,0.00013514,2]
[361159283,1747312275815,-400.0,0.00013514,2]
[361159284,1747312275825,-455.44,0.00013514,2]
[361159285,1747312275835,-545.88,0.00013514,2]
[361159286,1747312275848,-400.0,0.00013514,2]
[361159287,1747312275858,-400.0,0.00013514,2]
[361159288,1747312275868,-613.99,0.00013514,2]
[361159289,1747312275879,-400.0,0.00013514,2]
[361159290,1747312275889,-559.8,0.00013514,2]
[361159291,1747312275899,-7018.63,0.00013514,2]
[361159292,1747312275909,-472.72,0.00013514,2]
[361159293,1747312275920,-1647.57,0.00013514,2]
[361159294,1747312275930,-400.0,0.00013514,2]
[361159295,1747312276300,-400.0,0.00013514,2]
[361159296,1747312276334,-582.36,0.00013514,2]
[361159297,1747312276354,-400.0,0.00013514,2]
[361159298,1747312276363,-1273.86,0.00013514,2]
[361159299,1747312276372,-707.6,0.00013514,2]
[361159300,1747312276382,-400.0,0.00013514,2]
[361159301,1747312276392,-847.58,0.00013514,2]
[361159302,1747312276402,-532.14,0.00013514,2]
[361159303,1747312276412,-186.51318708,0.00013514,2]
[361159304,1747312276421,-400.0,0.00013514,2]
[361159305,1747312276431,-504.34,0.00013514,2]
[361159306,1747312276441,-539.45,0.00013514,2]
[361159307,1747312276450,-400.0,0.00013514,2]
[361159308,1747312276460,-400.0,0.00013514,2]
[361159309,1747312276471,-672.34,0.00013514,2]
[361159310,1747312276480,-400.0,0.00013514,2]
[361159311,1747312276492,-151.66845524,0.00013564,7]
[361159312,1747312276502,-826.96,0.00013598,2]
[361159313,1747312276511,-400.0,0.00013598,2]
[361159314,1747312276521,-400.0,0.00013598,2]
[361159315,1747312276532,-1048.33,0.00013598,2]
[361159316,1747312276542,-400.0,0.00013598,2]
[361159317,1747312276556,-400.0,0.00013598,2]
[361159318,1747312276567,-400.0,0.00013598,2]
[361159319,1747312276577,-423.63,0.00013598,2]
[361159320,1747312276587,-535.8,0.00013598,2]
[361159321,1747312276600,-1990.2,0.00013598,2]
[361159322,1747312276611,-566.87,0.00013598,2]
[361159323,1747312276621,-1000.0,0.00013599,2]
[361159324,1747312276630,-519.52870094,0.00013611,2]
[361159325,1747312276641,-2000.0,0.00013616,2]
[361159326,1747312276652,-264.38592877,0.00013631,2]
[361159327,1747312276662,-400.0,0.00013631,2]
[361159328,1747312276673,-572.39,0.00013631,2]
[361159329,1747312276682,-400.0,0.00013631,2]
[361159330,1747312276693,-400.0,0.00013631,2]
[361159331,1747312276703,-400.0,0.00013631,2]
[361159332,1747312276713,-475.17,0.00013631,2]
[361159333,1747312276723,-400.0,0.00013631,2]
[361159334,1747312276733,-427.86,0.00013631,2]
[361159335,1747312276743,-531.85,0.00013631,2]
[361159336,1747312276752,-400.0,0.00013631,2]
[361159337,1747312276762,-472.87,0.00013631,2]
[361159338,1747312276772,-800.26,0.00013631,2]
[361159339,1747312276782,-400.0,0.00013631,2]
[361159340,1747312276792,-527.61,0.00013631,2]
[361159341,1747312276801,-938.56,0.00013631,2]
[361159342,1747312276811,-400.0,0.00013631,2]
[361159343,1747312276821,-542.45,0.00013631,2]
[361159344,1747312276830,-448.35,0.00013631,2]
[361159345,1747312276841,-515.02,0.00013631,2]
[361159346,1747312276854,-920.05,0.00013631,2]
[361159347,1747312276864,-619.27,0.00013631,2]
[361159348,1747312276873,-546.2,0.00013631,2]
[361159349,1747312276882,-400.0,0.00013631,2]
[361159350,1747312276892,-400.0,0.00013631,2]
[361159351,1747312276902,-400.87,0.00013631,2]
[361159352,1747312276912,-400.0,0.00013631,2]
[361159353,1747312276922,-400.0,0.00013631,2]
[361159354,1747312276932,-457.69,0.00013631,2]
[361159355,1747312276942,-704.72,0.00013631,2]
[361159356,1747312276951,-450.0,0.00013631,2]
[361159357,1747312276962,-640.67,0.00013631,2]
[361159358,1747312276971,-463.55,0.00013631,2]
[361159359,1747312276981,-475.16,0.00013631,2]
[361159360,1747312276990,-647.93,0.00013631,2]
[361159361,1747312277000,-493.97,0.00013631,2]
[361159362,1747312277009,-408.34,0.00013631,2]
[361159363,1747312277019,-400.0,0.00013631,2]
[361159364,1747312277030,-930.04,0.00013631,2]
[361159365,1747312277039,-584.59,0.00013631,2]
[361159366,1747312277049,-508.74,0.00013631,2]
[361159367,1747312277059,-400.0,0.00013631,2]
[361159368,1747312277069,-562.67,0.00013631,2]
[361159369,1747312277079,-587.33,0.00013631,2]
[361159370,1747312277089,-480.35,0.00013631,2]
[361159371,1747312277102,-400.0,0.00013698,2]
[361159372,1747312277112,-400.0,0.00013698,2]
[361159373,1747312277122,-294.94904455,0.00013698,2]
[361159374,1747312277132,-823.01,0.00013698,2]
[361159375,1747312277142,-2186.73,0.00013698,2]
[361159376,1747312277151,-2186.73,0.00013698,2]
[361159377,1747312277161,-2186.73,0.00013698,2]
[361159378,1747312277170,-2186.73,0.00013698,2]
[361159379,1747312277180,-2186.73,0.00013698,2]
[361159380,1747312277190,-2186.73,0.00013698,2]
[361159381,1747312277199,-2186.73,0.00013698,2]
[361159382,1747312277208,-151.0,0.00013699,2]
[361159383,1747312277218,-201.423001,0.00013699,2]
[361159384,1747312277227,-924.0,0.00013699,2]
[361159385,1747312277238,-1000.0,0.00013699,2]
[361159386,1747312277248,-1000.0,0.00013699,2]
[361159387,1747312277258,-1000.0,0.00013699,2]
[361159388,1747312277268,-1000.0,0.00013699,2]
[361159389,1747312277278,-1000.0,0.00013699,2]
[361159390,1747312277287,-1000.0,0.00013699,2]
[361159391,1747312277297,-1000.0,0.00013699,2]
[361159392,1747312277307,-1000.0,0.00013699,2]
[361159393,1747312277317,-1000.0,0.00013699,2]
[361159394,1747312277326,-1000.0,0.00013699,2]
[361159395,1747312277336,-1000.0,0.00013699,2]
[361159396,1747312277349,-1000.0,0.00013699,2]
[361159397,1747312277359,-1000.0,0.00013699,2]
[361159398,1747312277369,-1000.0,0.00013699,2]
[361159399,1747312277378,-1000.0,0.00013699,2]
[361159400,1747312277387,-1000.0,0.00013699,2]
[361159401,1747312277397,-1000.0,0.00013699,2]
[361159402,1747312277406,-1000.0,0.00013699,2]
[361159403,1747312277417,-1000.0,0.00013699,2]
[361159404,1747312277426,-1000.0,0.00013699,2]
[361159405,1747312277436,-1000.0,0.00013699,2]
[361159406,1747312277446,-1000.0,0.00013699,2]
[361159407,1747312277455,-1000.0,0.00013699,2]
[361159408,1747312277465,-1000.0,0.00013699,2]
[361159409,1747312277475,-1000.0,0.00013699,2]
[361159410,1747312277485,-1000.0,0.00013699,2]
[361159411,1747312277497,-5251.11,0.00013699,2]
[361159412,1747312277507,-1000.0,0.00013699,2]
[361159413,1747312277517,-1000.0,0.00013699,2]
[361159414,1747312277527,-1000.0,0.00013699,2]
[361159415,1747312277537,-1000.0,0.00013699,2]
[361159416,1747312277547,-1000.0,0.00013699,2]
[361159417,1747312277556,-1000.0,0.00013699,2]
[361159418,1747312277566,-1000.0,0.00013699,2]
[361159419,1747312277576,-1000.0,0.00013699,2]
[361159420,1747312277586,-1000.0,0.00013699,2]
[361159421,1747312277596,-1000.0,0.00013699,2]
[361159422,1747312277607,-1006.0,0.00013699,2]
[361159423,1747312277617,-1000.0,0.00013699,2]
[361159424,1747312277626,-1000.0,0.00013699,2]
[361159425,1747312277636,-1000.0,0.00013699,2]
[361159426,1747312277646,-1000.0,0.00013699,2]
[361159427,1747312277655,-1000.0,0.00013699,2]
[361159428,1747312277666,-1000.0,0.00013699,2]
[361159429,1747312277676,-1000.0,0.00013699,2]
[361159430,1747312277686,-15554.62,0.00013699,2]
[361159431,1747312277696,-151.0,0.00013699,2]
[361159432,1747312277705,-151.0,0.00013699,2]
[361159433,1747312277714,-151.0,0.00013699,2]
[361159434,1747312277724,-151.0,0.00013699,2]
[361159435,1747312277734,-151.0,0.00013699,2]
[361159436,1747312277744,-151.0,0.00013699,2]
[361159437,1747312277753,-151.0,0.00013699,2]
[361159438,1747312277763,-151.0,0.00013699,2]
[361159439,1747312277773,-151.0,0.00013699,2]
[361159440,1747312277783,-151.003491,0.00013699,2]
[361159441,1747312277793,-1000.0,0.00013699,2]
[361159442,1747312277803,-1000.0,0.00013699,2]
[361159443,1747312277812,-1000.0,0.00013699,2]
[361159444,1747312277822,-1000.0,0.00013699,2]
[361159445,1747312277832,-1000.0,0.00013699,2]
[361159446,1747312277842,-1000.0,0.00013699,2]
[361159447,1747312277856,-1000.0,0.00013699,2]
[361159448,1747312277866,-1000.0,0.00013699,2]
[361159449,1747312277875,-1000.0,0.00013699,2]
[361159450,1747312277885,-1000.0,0.00013699,2]
[361159451,1747312277895,-1000.0,0.00013699,2]
[361159452,1747312277905,-1000.0,0.00013699,2]
[361159453,1747312277914,-1000.0,0.00013699,2]
[361159454,1747312277924,-1000.0,0.00013699,2]
[361159455,1747312277934,-1000.0,0.00013699,2]
[361159456,1747312277944,-1000.0,0.00013699,2]
[361159457,1747312277954,-1000.0,0.00013699,2]
[361159458,1747312277964,-477.06,0.00013699,2]
[361159459,1747312277973,-151.0,0.00013699,2]
[361159460,1747312277983,-151.0,0.00013699,2]
[361159461,1747312277993,-151.0,0.00013699,2]
[361159462,1747312278003,-151.0,0.00013699,2]
[361159463,1747312278012,-151.0,0.00013699,2]
[361159464,1747312278022,-151.0,0.00013699,2]
[361159465,1747312278032,-151.0,0.00013699,2]
[361159466,1747312278042,-151.0,0.00013699,2]
[361159467,1747312278051,-151.0,0.00013699,2]
[361159468,1747312278061,-151.0,0.00013699,2]
[361159469,1747312278072,-151.0,0.00013699,2]
[361159470,1747312278081,-151.0,0.00013699,2]
[361159471,1747312278091,-151.0,0.00013699,2]
[361159472,1747312278104,-151.0,0.00013699,2]
[361159473,1747312278115,-151.0,0.00013699,2]
[361159474,1747312278125,-151.0,0.00013699,2]
[361159475,1747312278135,-151.0,0.00013699,2]
[361159476,1747312278146,-151.0,0.00013699,2]
[361159477,1747312278156,-151.0,0.00013699,2]
[361159478,1747312278166,-256.897409,0.00013699,2]
[361159479,1747312278176,-171.45,0.00013699,2]
[361159480,1747312278186,-857.28,0.00013699,2]
[361159481,1747312278197,-1000.0,0.00013699,2]
[361159482,1747312278207,-1000.0,0.00013699,2]
[361159483,1747312278217,-1000.0,0.00013699,2]
[361159484,1747312278227,-1000.0,0.00013699,2]
[361159485,1747312278237,-1000.0,0.00013699,2]
[361159486,1747312278247,-1000.0,0.00013699,2]
[361159487,1747312278257,-1000.0,0.00013699,2]
[361159488,1747312278267,-1000.0,0.00013699,2]
[361159489,1747312278277,-1000.0,0.00013699,2]
[361159490,1747312278287,-1000.0,0.00013699,2]
[361159491,1747312278297,-1000.0,0.00013699,2]
[361159492,1747312278306,-1000.0,0.00013699,2]
[361159493,1747312278316,-1000.0,0.00013699,2]
[361159494,1747312278325,-1000.0,0.00013699,2]
[361159495,1747312278335,-1000.0,0.00013699,2]
[361159496,1747312278345,-1000.0,0.00013699,2]
[361159497,1747312278360,-1000.0,0.00013699,2]
[361159498,1747312278371,-1000.0,0.00013699,2]
[361159499,1747312278381,-1000.0,0.00013699,2]
[361159500,1747312278391,-1000.0,0.00013699,2]
[361159501,1747312278402,-1000.0,0.00013699,2]
[361159502,1747312278412,-1000.0,0.00013699,2]
[361159503,1747312278423,-1000.0,0.00013699,2]
[361159504,1747312278433,-1000.0,0.00013699,2]
[361159505,1747312278443,-1000.0,0.00013699,2]
[361159506,1747312278455,-1000.0,0.00013699,2]
[361159507,1747312278466,-1000.0,0.00013699,2]
[361159508,1747312278476,-1000.0,0.00013699,2]
[361159509,1747312278486,-1000.0,0.00013699,2]
[361159510,1747312278500,-1000.0,0.00013699,2]
[361159511,1747312278511,-1000.0,0.00013699,2]
[361159512,1747312278521,-1000.0,0.00013699,2]
[361159513,1747312278532,-1000.0,0.00013699,2]
[361159514,1747312278542,-1000.0,0.00013699,2]
[361159515,1747312278555,-200.0,0.00013699,2]
[361159516,1747312278566,-1000.0,0.00013699,2]
[361159517,1747312278576,-1000.0,0.00013699,2]
[361159518,1747312278587,-1000.0,0.00013699,2]
[361159519,1747312278603,-1000.0,0.00013699,2]
[361159520,1747312278613,-156.0,0.00013699,2]
[361159521,1747312278624,-156.0,0.00013699,2]
[361159522,1747312278634,-156.0,0.00013699,2]
[361159523,1747312278643,-156.0,0.00013699,2]
[361159524,1747312278653,-180.46090306,0.00013699,2]
[361159525,1747312278663,-500.0,0.00013699,2]
[361159526,1747312278673,-500.0,0.00013699,2]
[361159527,1747312278683,-500.0,0.00013699,2]
[361159528,1747312278695,-500.0,0.00013699,2]
[361159529,1747312278704,-545.8540455,0.00013699,2]
[361159530,1747312278715,-500.0,0.00013699,2]
[361159531,1747312278729,-500.0,0.00013699,2]
[361159532,1747312278739,-320.90799987,0.00013699,2]
[361159533,1747312278749,-500.0,0.00013699,2]
[361159534,1747312278760,-500.0,0.00013699,2]
[361159535,1747312278770,-508.70593931,0.00013699,2]
[361159536,1747312278781,-500.0,0.00013699,2]
[361159537,1747312278792,-163.33818879,0.00013699,2]
[361159538,1747312278802,-500.0,0.00013699,2]
[361159539,1747312278813,-500.0,0.00013699,2]
[361159540,1747312278823,-500.0,0.00013699,2]
[361159541,1747312278834,-500.0,0.00013699,2]
[361159542,1747312278845,-500.0,0.00013699,2]
[361159543,1747312278859,-500.0,0.00013699,2]
[361159544,1747312278870,-316.15847944,0.00013699,2]
[361159545,1747312278880,-271.41377699,0.00013699,2]
[361159546,1747312278891,-500.0,0.00013699,2]
[361159547,1747312278901,-500.0,0.00013699,2]
[361159548,1747312278912,-500.0,0.00013699,2]
[361159549,1747312278922,-510.0199091,0.00013699,2]
[361159550,1747312278933,-162.2837513,0.00013699,2]
[361159551,1747312278944,-500.0,0.00013699,2]
[361159552,1747312278955,-500.0,0.00013699,2]
[361159553,1747312278966,-500.0,0.00013699,2]
[361159554,1747312278977,-500.0,0.00013699,2]
[361159555,1747312278987,-152.88361866,0.00013699,2]
[361159556,1747312278997,-500.0,0.00013699,2]
[361159557,1747312279007,-500.0,0.00013699,2]
[361159558,1747312279017,-500.0,0.00013699,2]
[361159559,1747312279027,-500.0,0.00013699,2]
[361159560,1747312279037,-160.48886672,0.00013699,2]
[361159561,1747312279048,-154.19139617,0.00013699,2]
[361159562,1747312279058,-500.0,0.00013699,2]
[361159563,1747312279069,-500.0,0.00013699,2]
[361159564,1747312279079,-500.0,0.00013699,2]
[361159565,1747312279089,-500.0,0.00013699,2]
[361159566,1747312279102,-500.0,0.00013699,2]
[361159567,1747312279112,-500.0,0.00013699,2]
[361159568,1747312279122,-500.0,0.00013699,2]
[361159569,1747312279133,-160.77983035,0.00013699,2]
[361159570,1747312279143,-502.7556521,0.00013699,2]
[361159571,1747312279154,-331.50333966,0.00013699,2]
[361159572,1747312279164,-502.45376058,0.00013699,2]
[361159573,1747312279174,-500.0,0.00013699,2]
[361159574,1747312279185,-500.0,0.00013699,2]
[361159575,1747312279196,-163.01908092,0.00013699,2]
[361159576,1747312279206,-500.0,0.00013699,2]
[361159577,1747312279217,-211.64205454,0.00013699,2]
[361159578,1747312279227,-168.04,0.00013699,2]
[361159579,1747312279237,-150.0,0.00013699,2]
[361159580,1747312279249,-1157.11,0.00013699,2]
[361159581,1747312279259,-150.08,0.00013699,2]
[361159582,1747312279270,-500.0,0.00013699,2]
[361159583,1747312279280,-500.0,0.00013699,2]
[361159584,1747312279291,-211.96684767,0.00013699,2]
[361159585,1747312279301,-500.0,0.00013699,2]
[361159586,1747312279311,-500.0,0.00013699,2]
[361159587,1747312279322,-500.0,0.00013699,2]
[361159588,1747312279333,-500.0,0.00013699,2]
[361159589,1747312279343,-500.0,0.00013699,2]
[361159590,1747312279356,-500.0,0.00013699,2]
[361159591,1747312279366,-500.0,0.00013699,2]
[361159592,1747312279376,-500.0,0.00013699,2]
[361159593,1747312279386,-500.0,0.00013699,2]
[361159594,1747312279396,-500.0,0.00013699,2]
[361159595,1747312279406,-500.0,0.00013699,2]
[361159596,1747312279415,-500.0,0.00013699,2]
[361159597,1747312279425,-500.0,0.00013699,2]
[361159598,1747312279435,-500.0,0.00013699,2]
[361159599,1747312279444,-500.0,0.00013699,2]
[361159600,1747312279454,-500.0,0.00013699,2]
[361159601,1747312279465,-500.0,0.00013699,2]
[361159602,1747312279475,-500.0,0.00013699,2]
[361159603,1747312279485,-500.0,0.00013699,2]
[361159604,1747312279495,-500.0,0.00013699,2]
[361159605,1747312279507,-500.0,0.00013699,2]
[361159606,1747312279517,-500.0,0.00013699,2]
[361159607,1747312279527,-500.0,0.00013699,2]
[361159608,1747312279537,-500.0,0.00013699,2]
[361159609,1747312279547,-500.0,0.00013699,2]
[361159610,1747312279557,-500.0,0.00013699,2]
[361159611,1747312279567,-500.0,0.00013699,2]
[361159612,1747312279577,-500.0,0.00013699,2]
[361159613,1747312279587,-500.0,0.00013699,2]
[361159614,1747312279596,-500.0,0.00013699,2]
[361159615,1747312279608,-500.0,0.00013699,2]
[361159616,1747312279618,-500.0,0.00013699,2]
[361159617,1747312279628,-500.0,0.00013699,2]
[361159618,1747312279639,-500.0,0.00013699,2]
[361159619,1747312279649,-500.0,0.00013699,2]
[361159620,1747312279660,-500.0,0.00013699,2]
[361159621,1747312279670,-500.0,0.00013699,2]
[361159622,1747312279680,-500.0,0.00013699,2]
[361159623,1747312279690,-500.0,0.00013699,2]
[361159624,1747312279700,-500.0,0.00013699,2]
[361159625,1747312279710,-500.0,0.00013699,2]
[361159626,1747312279720,-500.0,0.00013699,2]
[361159627,1747312279730,-500.0,0.00013699,2]
[361159628,1747312279739,-500.0,0.00013699,2]
[361159629,1747312279924,-500.0,0.00013699,2]
[361159630,1747312279948,-500.0,0.00013699,2]
[361159631,1747312279958,-500.0,0.00013699,2]